bitfinex-derivatives/quotes_ETHF0:USTF0_20250104
["timestamp","ask_amount","ask_price","bid_price","bid_amount"]
[1735951804752,0.27755,3604.2,3604.1,0.27755]
[1735951805154,3.2078,3604.3,3603.9,0.4466]
[1735951805353,0.27755,3604.2,3604.0,0.27756]
[1735951805555,0.27755,3604.2,3603.9,0.4466]
[1735951805752,3.2078,3604.3,3603.9,0.4466]
[1735951805952,0.4301,3604.5,3603.9,0.4466]
[1735951806160,0.4301,3604.5,3604.4,0.27753]
[1735951807452,0.70762,3604.5,3604.4,0.27753]
[1735951807853,0.70762,3604.5,3604.3,0.27753]
[1735951808052,0.4301,3604.5,3604.2,1.077]
[1735951808359,0.70763,3604.5,3604.3,0.27753]
[1735951808859,0.4301,3604.5,3604.4,0.27753]
[1735951809752,0.4301,3604.5,3604.4,0.69743]
[1735951810056,3.2078,3604.7,3604.6,0.27752]
[1735951810566,3.48531,3604.7,3604.6,0.27752]
[1735951810856,3.2078,3604.7,3604.6,0.27752]
[1735951811453,3.48531,3604.7,3604.6,0.27752]
[1735951811847,3.2078,3604.7,3604.6,0.27752]
[1735951814270,0.2775,3604.8,3604.7,0.27751]
[1735951814554,0.8753,3604.9,3604.8,0.2775]
[1735951814759,2.16938387,3605.1,3604.4,1.53473]
[1735951814760,0.27748,3605.1,3604.4,1.53473]
[1735951815062,0.27748,3605.1,3605.0,0.27748]
[1735951816563,0.27747,3605.2,3605.1,0.27747]
[1735951816760,0.70867,3605.3,3604.8,0.2775]
[1735951816954,0.4312,3605.3,3605.2,0.27747]
[1735951817263,2.16938387,3605.5,3605.4,0.27745]
[1735951818561,3.48524,3605.6,3605.3,0.32879514]
[1735951819069,3.48524,3605.6,3605.5,0.27745]
[1735951819463,0.27745,3605.5,3605.4,0.27745]
[1735951820363,3.2078,3605.6,3605.1,1.077]
[1735951820563,0.8298,3605.4,3605.1,1.077]
[1735951820866,0.8298,3605.4,3604.6,3.90159]
[1735951820867,3.2078,3605.2,3604.7,0.2775]
[1735951821068,0.2775,3604.8,3604.7,1.076]
[1735951821368,0.2775,3604.9,3604.8,0.2775]
[1735951822770,0.4085,3605.1,3604.8,0.2775]
[1735951822969,0.4085,3605.1,3604.9,0.27748]
[1735951823273,0.27749,3605.0,3604.7,1.076]
[1735951823470,0.27749,3605.0,3604.9,0.27749]
[1735951825673,0.4085,3605.1,3604.7,1.076]
[1735951825873,0.6978,3604.9,3604.8,0.2775]
[1735951827373,2.86718387,3604.9,3604.8,0.2775]
[1735951827574,2.58968387,3604.9,3604.8,0.2775]
[1735951828467,0.69779,3604.9,3604.8,0.2775]
[1735951829878,2.58968387,3604.9,3604.8,0.2775]
[1735951830278,2.86717387,3604.9,3604.8,0.2775]
[1735951830577,2.58968387,3604.9,3604.6,1.076]
[1735951830767,0.69731,3604.8,3604.7,0.27751]
[1735951831077,0.27752,3604.6,3604.5,1.35352]
[1735951832576,3.67778911,3604.8,3604.2,0.4419]
[1735951832779,0.27753,3604.4,3604.3,0.27753]
[1735951833172,0.70143,3604.4,3604.3,0.27753]
[1735951835176,2.87166082,3604.4,3604.3,0.27753]
[1735951835876,2.59413082,3604.4,3604.3,0.27753]
[1735951836276,0.4239,3604.4,3604.3,0.27753]
[1735951837583,0.70143,3604.4,3604.3,0.27753]
[1735951838088,3.95941911,3604.4,3604.3,0.27753]
[1735951838479,3.68188911,3604.4,3604.3,0.27753]
[1735951838980,3.95941911,3604.4,3604.3,0.27753]
[1735951839984,0.70143,3604.4,3604.3,0.27753]
[1735951840179,0.27755,3604.3,3604.2,0.27754]
[1735951841486,3.53553911,3604.3,3604.2,0.27754]
[1735951842178,3.9519201,3604.3,3604.2,0.27754]
[1735951843588,3.6743701,3604.3,3604.2,0.27754]
[1735951844889,3.9519101,3604.3,3604.2,0.27754]
[1735951847286,3.6743701,3604.3,3604.2,0.27754]
[1735951847591,0.41638099,3604.3,3604.2,0.27754]
[1735951847789,0.69392099,3604.3,3604.2,0.27754]
[1735951848393,0.41638099,3604.3,3604.2,0.27754]
[1735951848787,5.04881275,3604.5,3604.0,1.077]
[1735951848984,1.00126953,3604.4,3604.3,0.27754]
[1735951849287,0.27754,3604.3,3604.2,0.27754]
[1735951849882,3.95205945,3604.3,3604.2,0.27754]
[1735951852094,3.67451945,3604.3,3604.2,0.27754]
[1735951853395,3.95205945,3604.3,3604.2,0.27754]
[1735951856894,3.95205945,3604.3,3604.0,1.077]
[1735951856895,0.27755,3604.2,3604.1,0.27755]
[1735951857090,0.70965,3604.2,3604.1,0.27755]
[1735951858399,0.27757,3604.0,3603.9,0.27757]
[1735951860094,2.44845334,3604.0,3603.9,0.27757]
[1735951860497,2.17088334,3604.0,3603.9,0.27757]
[1735951860697,2.44844334,3604.0,3603.9,0.27757]
[1735951861092,2.17088334,3604.0,3603.9,0.27757]
[1735951863098,2.17088334,3604.0,3603.8,2.52016953]
[1735951863099,2.17088334,3604.1,3604.0,0.27756]
[1735951863299,2.17088334,3604.1,3604.0,1.27882953]
[1735951864103,0.27752,3604.5,3604.4,0.27753]
[1735951864604,3.44967287,3604.6,3604.5,0.27752]
[1735951865304,1.69513951,3604.6,3604.5,0.27752]
[1735951866303,1.27878953,3604.6,3604.5,0.27752]
[1735951866812,1.00126953,3604.6,3604.3,0.4379]
[1735951866994,0.27753,3604.4,3604.3,0.71544]
[1735951867399,1.00126953,3604.4,3604.1,3.2078]
[1735951867603,1.27881953,3604.2,3604.1,3.2078]
[1735951867801,0.27755,3604.1,3604.0,0.27756]
[1735951868206,0.27756,3604.0,3603.8,0.27757]
[1735951868407,0.27757,3603.9,3603.8,1.35457]
[1735951868606,0.27756,3604.0,3603.9,0.27756]
[1735951869803,0.41634998,3604.1,3603.7,5.28606953]
[1735951870004,0.69390998,3604.1,3604.0,0.27756]
[1735951870404,4.63364275,3604.1,3604.0,0.27756]
[1735951871310,5.05004737,3604.1,3604.0,0.27756]
[1735951872111,4.77248737,3604.1,3604.0,0.27756]
[1735951874407,3.67869456,3604.1,3604.0,0.27756]
[1735951875607,5.05003737,3604.2,3604.1,0.27755]
[1735951876608,0.69395462,3604.2,3604.1,0.27755]
[1735951876802,0.41640462,3604.2,3603.9,1.00126953]
[1735951877113,0.41640462,3604.2,3604.0,0.27755]
[1735951877114,0.27756,3604.1,3604.0,0.27755]
[1735951877610,0.69395462,3604.2,3604.1,0.27755]
[1735951877811,5.72971294,3604.2,3604.1,0.27755]
[1735951878014,5.45216294,3604.2,3604.1,0.27755]
[1735951878512,5.45216294,3604.2,3604.1,1.27881953]
[1735951879012,5.98093383,3604.2,3604.1,1.27881953]
[1735951879210,5.98093383,3604.2,3604.1,0.90625639]
[1735951879404,5.98093383,3604.2,3604.1,4.11405639]
[1735951879606,3.26476387,3604.2,3604.1,3.83650639]
[1735951879807,3.26476387,3604.2,3604.1,4.11405639]
[1735951880611,0.27753,3604.5,3604.1,4.11405639]
[1735951880612,4.76936814,3604.3,3604.2,0.27755]
[1735951880913,4.76936814,3604.3,3604.2,0.72915]
[1735951881518,4.76936814,3604.4,3604.2,0.4516]
[1735951881819,4.76936814,3604.4,3604.3,0.27754]
[1735951887011,5.97262523,3604.4,3604.3,0.27754]
[1735951887920,0.41634965,3604.4,3604.3,0.27754]
[1735951890327,0.41634965,3604.4,3604.3,1.27880953]
[1735951891024,4.76908761,3604.4,3604.3,1.27880953]
[1735951891227,4.76908761,3604.4,3604.3,1.71510953]
[1735951892023,3.26476333,3604.4,3604.3,1.71510953]
[1735951892524,3.26476333,3604.4,3604.3,5.99990953]
[1735951893524,3.26476333,3604.5,3604.4,0.27753]
[1735951894830,0.41634965,3604.5,3604.4,0.27753]
[1735951895728,0.41634965,3604.6,3604.5,0.27752]
[1735951895931,0.41634965,3604.6,3604.5,1.27878953]
[1735951897325,0.69386965,3604.6,3604.5,1.27878953]
[1735951897526,0.41634965,3604.6,3603.9,3.2078]
[1735951897729,0.41634965,3604.6,3604.3,1.00126953]
[1735951897929,0.27753,3604.4,3604.3,1.00126953]
[1735951898226,0.27753,3604.4,3604.3,1.27880953]
[1735951898432,0.70553,3604.4,3604.3,1.27880953]
[1735951898927,1.12187965,3604.4,3604.3,1.00126953]
[1735951900124,0.27754,3604.3,3604.2,1.077]
[1735951900432,0.4361,3604.3,3604.1,1.00126953]
[1735951900751,0.69505,3604.2,3604.1,1.00126953]
[1735951902124,6.6391071,3604.2,3604.1,1.00126953]
[1735951902329,0.27756,3604.0,3603.9,1.00126953]
[1735951903367,0.69390965,3604.0,3603.9,1.00126953]
[1735951906332,0.41634965,3604.0,3603.7,1.00126953]
[1735951906534,0.68857,3603.9,3603.8,0.27757]
[1735951906974,0.27758,3603.8,3603.7,1.27884953]
[1735951907663,0.69392965,3603.8,3603.7,1.27884953]
[1735951908562,0.27759,3603.7,3603.4,0.27761]
[1735951908769,0.4292,3603.6,3603.5,0.2776]
[1735951909775,0.4292,3603.6,3603.5,1.00126953]
[1735951910066,3.96844069,3603.6,3603.5,1.27886953]
[1735951910867,0.2776,3603.5,3603.4,1.077]
[1735951911065,5.10858216,3603.6,3603.1,1.00126953]
[1735951911270,0.4148,3603.4,3603.3,0.27761]
[1735951911767,0.4148,3603.4,3603.3,1.27887953]
[1735951911966,0.4148,3603.4,3603.3,0.27761]
[1735951912162,0.83126194,3603.4,3603.3,0.27761]
[1735951913071,0.83126194,3603.4,3603.3,1.27887953]
[1735951914641,0.4148,3603.4,3603.3,1.27887953]
[1735951915945,3.67666585,3603.5,3603.4,0.27761]
[1735951916446,3.67666585,3603.5,3603.4,0.71981]
[1735951916844,2.17279179,3603.5,3603.4,0.71981]
[1735951918346,2.45039179,3603.5,3603.4,0.71981]
[1735951918541,2.17279179,3603.5,3603.4,0.71981]
[1735951918950,4.41129045,3603.6,3603.5,0.2776]
[1735951919147,4.41129045,3603.6,3603.5,1.27886953]
[1735951919741,4.82775665,3603.6,3603.5,1.27886953]
[1735951920745,4.55015665,3603.6,3603.5,1.27886953]
[1735951920946,4.82774665,3603.6,3603.5,1.27886953]
[1735951922547,4.10585665,3603.6,3603.5,1.27886953]
[1735951922847,3.67665665,3603.6,3603.5,1.27886953]
[1735951923146,3.67665665,3603.6,3603.5,1.71806953]
[1735951923353,0.27756,3604.0,3603.5,1.44046953]
[1735951923354,3.26019045,3603.7,3603.5,1.44046953]
[1735951923547,3.26019045,3603.7,3603.6,1.27885953]
[1735951924651,2.17159236,3603.8,3603.7,0.27758]
[1735951924850,2.17159236,3603.8,3603.7,1.35458]
[1735951925850,2.17159236,3603.9,3603.8,0.27758]
[1735951927052,3.53776045,3604.0,3603.9,0.27757]
[1735951927255,0.27757,3603.9,3603.8,0.27757]
[1735951927854,3.53775045,3604.0,3603.9,0.27757]
[1735951928052,3.26019045,3604.0,3603.9,0.27757]
[1735951928258,1.09536,3604.1,3603.9,0.27757]
[1735951928259,1.51179681,3604.1,3603.9,0.4454]
[1735951928456,1.51179681,3604.1,3604.0,0.27756]
[1735951928852,1.51179681,3604.1,3603.9,0.4454]
[1735951929161,1.23423681,3604.1,3603.7,2.07826953]
[1735951929355,4.35306733,3604.1,3604.0,0.27756]
[1735951931253,4.35305733,3604.1,3604.0,0.27756]
[1735951931960,4.76947318,3604.1,3604.0,0.27756]
[1735951932756,1.51176585,3604.1,3604.0,0.27756]
[1735951934164,1.51176585,3604.1,3603.8,0.27757]
[1735951934165,0.27757,3603.9,3603.8,0.27757]
[1735951934568,1.23421585,3604.1,3603.5,1.41876953]
[1735951934764,0.4514,3603.8,3603.6,1.077]
[1735951934965,0.27758,3603.7,3603.6,1.35459]
[1735951935571,0.27758,3603.7,3603.6,0.27759]
[1735951936165,3.95318986,3603.7,3603.6,0.27759]
[1735951937357,0.27759,3603.6,3603.5,1.27886953]
[1735951937663,1.14879,3603.6,3603.5,1.27886953]
[1735951938270,4.4079348,3603.6,3603.5,1.27886953]
[1735951938662,4.4079348,3603.6,3603.5,1.00126953]
[1735951939265,4.82440903,3603.6,3603.5,1.00126953]
[1735951939572,4.54681903,3603.6,3603.4,2.02396112]
[1735951939763,0.2776,3603.5,3603.4,2.02396112]
[1735951940362,0.2776,3603.5,3603.4,1.00126953]
[1735951940564,0.2776,3603.5,3603.4,0.27761]
[1735951941470,0.69407423,3603.5,3603.4,0.27761]
[1735951941664,0.41647423,3603.5,3602.6,3.6293]
[1735951941863,0.41647423,3603.5,3602.3,8.72108876]
[1735951941864,0.27765,3602.9,3602.8,0.27765]
[1735951943173,3.2078,3603.0,3602.7,1.44726953]
[1735951943377,0.27765,3602.8,3602.7,1.72492953]
[1735951944265,0.41647423,3602.9,3602.7,1.44726953]
[1735951944472,3.538318,3602.9,3602.8,0.27765]
[1735951945272,3.260668,3602.9,3602.8,0.27765]
[1735951945477,3.538318,3602.9,3602.8,0.27765]
[1735951946078,3.260668,3602.9,3602.8,0.27765]
[1735951947677,3.260668,3602.9,3602.8,0.69275]
[1735951947881,2.1735903,3603.1,3602.8,0.4151]
[1735951948079,2.1735903,3603.1,3603.0,1.00126953]
[1735951948280,2.1735903,3603.1,3603.0,1.27890953]
[1735951948682,2.1735903,3603.2,3603.0,1.00126953]
[1735951948883,3.7672203,3603.2,3603.1,0.27763]
[1735951949184,3.4895903,3603.2,3603.1,0.27763]
[1735951949983,1.73251911,3603.2,3603.1,0.27763]
[1735951950182,2.01013911,3603.2,3603.1,0.27763]
[1735951950874,1.73251911,3603.2,3603.1,0.27763]
[1735951951183,1.316,3603.2,3603.1,0.27763]
[1735951951581,1.59362,3603.2,3603.1,0.27763]
[1735951952085,0.27763,3603.1,3603.0,0.27763]
[1735951952783,0.27764,3603.0,3602.9,1.27890953]
[1735951954683,0.27764,3603.1,3603.0,0.27764]
[1735951955478,0.69417589,3603.1,3603.0,0.27764]
[1735951955976,0.41653589,3603.1,3602.7,0.446]
[1735951956184,0.27764,3603.0,3602.9,0.27764]
[1735951957585,0.69417589,3603.0,3602.9,0.27764]
[1735951959389,0.27765,3602.9,3602.8,0.27765]
[1735951959985,3.53755201,3602.9,3602.8,0.27765]
[1735951960390,3.25990201,3602.9,3602.8,0.27765]
[1735951961388,3.53754201,3603.0,3602.9,0.27765]
[1735951962086,0.27765,3602.9,3602.8,0.27765]
[1735951962288,3.53754201,3603.0,3602.9,0.27765]
[1735951962589,3.95408304,3603.0,3602.9,0.27765]
[1735951962992,0.27765,3602.9,3602.8,0.27765]
[1735951963691,2.45065622,3602.9,3602.8,0.27765]
[1735951964992,2.17300622,3602.9,3602.8,0.27765]
[1735951965195,2.45065622,3602.9,3602.8,0.27765]
[1735951966588,0.27765,3602.8,3602.7,2.35592953]
[1735951967093,0.4326,3602.8,3602.7,2.35592953]
[1735951967286,0.71025,3602.8,3602.7,2.35592953]
[1735951967483,2.88325622,3602.8,3602.7,2.35592953]
[1735951968393,2.60560622,3602.8,3602.7,2.35592953]
[1735951970684,2.88325622,3602.8,3602.7,2.35592953]
[1735951970890,2.60560622,3602.8,3602.7,2.35592953]
[1735951971088,2.88325622,3602.8,3602.7,2.35592953]
[1735951973298,2.88325622,3602.8,3602.7,1.35466]
[1735951973697,2.88325622,3602.8,3602.7,1.077]
[1735951973891,0.71025,3602.8,3602.7,1.077]
[1735951975994,3.97015201,3602.8,3602.7,1.077]
[1735951978002,4.38670765,3602.8,3602.7,1.077]
[1735951978299,4.38670765,3602.8,3602.7,1.35466]
[1735951979101,1.12680564,3602.8,3602.7,1.35466]
[1735951980294,0.84915564,3602.8,3602.7,1.35466]
[1735951980704,0.71025,3602.8,3602.7,1.35466]
[1735951981905,1.12680564,3602.8,3602.7,1.35466]
[1735951983105,5.47736514,3602.8,3602.7,1.35466]
[1735951985304,6.47863467,3602.8,3602.7,1.35466]
[1735951986503,2.12807517,3602.8,3602.7,1.35466]
[1735951988808,1.12680564,3602.8,3602.7,1.35466]
[1735951990107,1.12680564,3602.8,3602.7,0.27766]
[1735951990610,6.58430442,3602.8,3602.7,0.27766]
[1735951994516,12.03646736,3602.8,3602.7,0.27766]
[1735951995813,12.03646736,3602.8,3602.6,1.077]
[1735951995814,11.75881736,3602.8,3602.6,1.077]
[1735951996010,0.69436,3602.7,3602.6,1.35466]
[1735951996313,0.27767,3602.6,3602.5,0.27767]
[1735951996512,1.27893953,3602.6,3602.5,0.27767]
[1735951997510,1.71141495,3602.6,3602.5,0.27767]
[1735951998214,13.03763231,3602.6,3602.5,0.27767]
[1735951998418,12.75996231,3602.6,3602.4,0.4402]
[1735951998617,13.03763231,3602.6,3602.5,0.27768]
[1735951998913,13.03754734,3602.6,3602.5,0.27768]
[1735952000919,13.03754734,3602.6,3602.4,1.42980237]
[1735952001312,13.03754734,3602.6,3602.5,0.27768]
[1735952002619,13.03745306,3602.6,3602.5,0.27768]
[1735952002922,11.32621736,3602.6,3602.5,0.27768]
[1735952004218,0.41655564,3602.6,3602.5,0.27768]
[1735952013741,0.41655564,3602.6,3602.5,1.35468]
[1735952016740,3.68921462,3602.6,3602.5,1.35468]
[1735952017743,3.27265898,3602.6,3602.5,1.35468]
[1735952018645,4.10589394,3602.7,3602.6,0.27767]
[1735952018843,4.10589394,3602.7,3602.6,1.27893953]
[1735952021244,0.4167,3602.7,3602.6,1.27893953]
[1735952022651,3.68916917,3602.8,3602.6,1.00126953]
[1735952022954,2.8876484,3603.0,3602.9,0.27765]
[1735952023153,2.0453484,3603.0,3602.9,1.35465]
[1735952023450,1.8533484,3603.0,3602.9,7.35591953]
[1735952023657,0.4627484,3603.0,3602.9,7.35591953]
[1735952023844,2.18122067,3603.3,3602.9,2.07826953]
[1735952024044,2.18122067,3603.3,3603.2,3.48542]
[1735952025453,7.6563902,3604.0,3603.2,3.48542]
[1735952025652,6.65512067,3604.0,3603.9,0.27757]
[1735952025852,6.65512067,3604.0,3603.9,1.35457]
[1735952026247,7.6563902,3604.0,3603.9,1.35457]
[1735952027053,5.47516953,3604.0,3603.9,1.35457]
[1735952027853,4.4739,3604.0,3603.9,1.35457]
[1735952029956,1.2661,3604.0,3603.9,2.35583953]
[1735952030549,1.2661,3604.0,3603.9,0.27757]
[1735952030860,1.2661,3604.0,3603.9,2.35483953]
[1735952034757,1.2661,3604.0,3603.9,2.63243953]
[1735952038064,3.2078,3604.5,3603.9,2.35486953]
[1735952038259,3.2078,3604.5,3604.4,1.27879953]
[1735952041968,1.2994,3604.9,3604.4,1.00126953]
[1735952042267,1.2994,3604.9,3604.8,0.2775]
[1735952042471,4.78469,3604.9,3604.8,0.2775]
[1735952043473,4.5072,3604.9,3604.8,0.2775]
[1735952045567,1.2994,3604.9,3604.8,0.2775]
[1735952047068,1.2994,3604.9,3604.8,3.4853]
[1735952047268,0.8851,3604.9,3604.8,3.4853]
[1735952047473,0.8502,3605.2,3605.1,0.27748]
[1735952047673,0.8502,3605.2,3605.1,1.27874953]
[1735952048063,0.8502,3605.2,3605.1,0.27748]
[1735952048267,1.12767,3605.2,3605.1,0.27748]
[1735952051072,1.12767,3605.2,3604.7,1.076]
[1735952051073,0.8502,3605.2,3604.7,1.076]
[1735952051380,0.27748,3605.1,3605.0,0.27748]
[1735952055780,4.33547,3605.2,3605.1,0.27748]
[1735952055984,4.33547,3605.2,3605.1,1.27874953]
[1735952056571,4.058,3605.2,3605.1,1.27874953]
[1735952060688,0.4182,3605.2,3605.1,1.27874953]
[1735952062988,0.71744,3605.6,3605.5,0.27745]
[1735952063285,1.15014,3605.6,3605.5,0.27745]
[1735952064089,3.2078,3605.7,3605.4,2.07726953]
[1735952064389,2.18122067,3605.9,3605.6,1.00126953]
[1735952064589,2.18122067,3605.9,3605.8,1.27868953]
[1735952065491,1.2874,3606.1,3605.8,1.27868953]
[1735952065492,1.2874,3606.1,3606.0,0.27741]
[1735952065791,1.2874,3606.1,3606.0,1.27867953]
[1735952071491,1.2874,3606.1,3606.0,0.27741]
[1735952071691,1.5648,3606.1,3606.0,0.27741]
[1735952071885,1.2874,3606.1,3606.0,0.27741]
[1735952072685,1.5648,3606.1,3606.0,0.27741]
[1735952073388,2.28866953,3606.1,3605.5,1.076]
[1735952073692,0.27744,3605.6,3605.5,1.076]
[1735952074189,0.70504,3605.6,3605.5,1.076]
[1735952074697,0.27745,3605.5,3605.0,5.7124194]
[1735952074884,0.27747,3605.2,3605.1,0.27748]
[1735952076395,0.27747,3605.2,3605.0,1.35348]
[1735952076593,0.4169,3605.1,3604.8,1.076]
[1735952076789,0.27749,3604.9,3604.7,3.2078]
[1735952076987,0.8366,3604.8,3604.7,4.5613]
[1735952077695,1.1141,3604.8,3604.7,1.076]
[1735952078094,0.8366,3604.8,3604.7,1.076]
[1735952078390,0.8366,3604.8,3604.7,1.35351]
[1735952078591,0.27752,3604.6,3604.4,0.27753]
[1735952078797,0.27752,3604.6,3604.4,1.35353]
[1735952078996,0.69442,3604.5,3604.4,1.35353]
[1735952079492,0.69442,3604.5,3604.4,1.076]
[1735952079795,0.69442,3604.5,3604.4,1.35353]
[1735952079996,0.4169,3604.5,3604.4,1.35353]
[1735952080492,0.69442,3604.5,3604.4,1.35353]
[1735952080697,0.69442,3604.5,3604.4,1.076]
[1735952080996,0.69442,3604.5,3604.3,1.35354]
[1735952081191,0.4169,3604.5,3604.3,1.076]
[1735952081493,0.4169,3604.5,3604.4,0.27753]
[1735952089403,0.69442,3604.5,3604.4,0.27753]
[1735952090400,0.4169,3604.5,3604.4,0.27753]
[1735952093705,2.59992067,3604.8,3604.7,0.27751]
[1735952094201,2.18122067,3604.8,3604.7,2.40421227]
[1735952094397,2.18122067,3604.8,3604.7,5.61201227]
[1735952094594,8.63385375,3605.4,3604.7,5.61201227]
[1735952094595,2.18122067,3605.1,3605.0,0.27748]
[1735952094805,2.18122067,3605.1,3605.0,3.48018227]
[1735952096106,3.2078,3605.4,3605.3,0.27746]
[1735952096592,1.60404,3605.6,3605.1,0.4302]
[1735952096793,1.60404,3605.6,3605.5,0.27745]
[1735952100000,1.3266,3605.6,3605.5,0.27745]
[1735952100402,0.27745,3605.5,3605.4,0.27745]
[1735952100798,1.3266,3605.6,3605.0,1.076]
[1735952101006,0.27746,3605.3,3605.1,1.35347]
[1735952101203,0.27746,3605.3,3605.2,0.27747]
[1735952101404,3.48526,3605.4,3605.2,0.27747]
[1735952101603,3.48526,3605.4,3605.3,0.27746]
[1735952103111,3.48525,3605.4,3605.3,0.27746]
[1735952103405,3.2078,3605.4,3605.3,0.27746]
[1735952105504,3.48525,3605.4,3605.3,0.27746]
[1735952106204,3.2078,3605.4,3605.1,1.076]
[1735952106406,0.27746,3605.3,3605.2,0.27747]
[1735952108505,3.2078,3605.4,3605.3,0.27746]
[1735952108506,3.48526,3605.4,3605.3,0.27746]
[1735952108706,0.27747,3605.2,3605.1,1.076]
[1735952108911,0.2775,3604.9,3604.4,0.7036]
[1735952109106,0.418,3604.8,3604.7,0.27751]
[1735952109306,0.8389,3604.8,3604.7,0.27751]
[1735952109909,1.1164,3604.8,3604.7,0.27751]
[1735952110101,1.1164,3604.8,3604.5,1.076]
[1735952110102,0.27751,3604.7,3604.5,1.076]
[1735952110305,0.27752,3604.6,3604.5,1.076]
[1735952110508,0.69252,3604.6,3604.5,1.076]
[1735952111112,0.415,3604.6,3604.5,1.35352]
[1735952111315,0.415,3604.6,3604.5,0.27752]
[1735952111815,0.8389,3604.8,3604.7,0.27751]
[1735952112008,0.418,3604.8,3604.7,0.27751]
[1735952112515,2.18122067,3605.0,3604.9,0.27749]
[1735952112813,0.27749,3604.9,3604.8,0.2775]
[1735952113011,0.2775,3604.8,3604.7,0.27751]
[1735952113309,0.27751,3604.7,3604.6,0.27751]
[1735952113516,0.68551,3604.7,3604.6,0.27751]
[1735952115511,0.408,3604.7,3604.6,0.27751]
[1735952118011,2.58922067,3604.7,3604.6,0.27751]
[1735952119320,0.408,3604.7,3604.6,0.27751]
[1735952121823,3.66999284,3604.7,3604.6,0.27751]
[1735952123123,0.408,3604.7,3604.6,0.27751]
[1735952124225,2.58622305,3604.7,3604.6,0.27751]
[1735952125921,2.58622305,3604.7,3604.6,1.35351]
[1735952126123,2.17822305,3604.7,3604.6,1.35351]
[1735952126624,2.17822305,3604.7,3604.6,2.21381]
[1735952128123,4.75692189,3605.1,3604.6,8.4747091]
[1735952128124,2.59622305,3605.1,3604.6,8.4747091]
[1735952128325,2.59622305,3605.1,3605.0,0.27748]
[1735952129626,3.67999284,3605.1,3605.0,0.27748]
[1735952130026,3.95747284,3605.1,3605.0,0.27748]
[1735952130824,0.69548,3605.1,3605.0,0.27748]
[1735952131122,0.418,3605.1,3604.9,1.076]
[1735952131330,0.27748,3605.0,3604.9,1.35349]
[1735952131529,0.69548,3605.1,3605.0,0.27748]
[1735952132933,1.11178047,3605.1,3605.0,0.27748]
[1735952135137,5.45070236,3605.1,3605.0,0.27748]
[1735952136232,1.11178047,3605.1,3605.0,0.27748]
[1735952138139,0.83430047,3605.1,3605.0,0.27748]
[1735952138329,1.11178047,3605.1,3605.0,0.27748]
[1735952138835,0.83430047,3605.1,3605.0,0.27748]
[1735952139034,0.41630047,3605.1,3605.0,0.27748]
[1735952139240,0.41630047,3605.1,3605.0,0.69228]
[1735952139542,0.41630047,3605.1,3605.0,1.12578]
[1735952140146,3.27021141,3605.1,3605.0,1.12578]
[1735952142943,2.18015289,3605.6,3605.5,0.27745]
[1735952143941,0.8374,3605.7,3605.6,0.27744]
[1735952143942,3.01755289,3605.7,3605.6,0.27744]
[1735952144141,3.01755289,3605.7,3605.6,1.35344]
[1735952147255,4.5238385,3605.7,3605.6,1.35344]
[1735952148250,0.8374,3605.7,3605.6,1.35344]
[1735952150265,4.52093835,3605.7,3605.6,1.35344]
[1735952151664,4.52093835,3605.7,3605.6,1.075]
[1735952152356,4.52093835,3605.7,3605.6,1.35244]
[1735952154953,4.10471126,3605.7,3605.6,1.35244]
[1735952159969,0.8374,3605.7,3605.6,1.35244]
[1735952166270,0.8374,3605.7,3605.6,2.35279021]
[1735952166671,3.01557877,3605.7,3605.6,2.35279021]
[1735952167360,3.01557877,3605.7,3605.6,1.35244]
[1735952167361,3.29300877,3605.7,3605.6,1.35244]
[1735952167671,3.29300877,3605.7,3605.3,0.27746]
[1735952167672,0.27746,3605.4,3605.3,0.27746]
[1735952167870,0.27746,3605.4,3605.3,1.35246]
[1735952168068,0.27744,3605.6,3605.5,0.27744]
[1735952168272,0.27745,3605.5,3605.4,1.27780021]
[1735952171370,3.26731126,3605.6,3605.0,4.35620096]
[1735952171582,0.27746,3605.3,3605.2,0.27746]
[1735952172273,1.00035021,3605.3,3605.0,4.35620096]
[1735952172574,0.27747,3605.2,3605.1,0.27748]
[1735952172774,0.69327,3605.2,3605.1,0.27748]
[1735952173177,0.27748,3605.1,3605.0,0.27748]
[1735952173872,0.69378847,3605.1,3605.0,0.27748]
[1735952174175,0.27751,3604.7,3604.6,0.27751]
[1735952174563,0.27751,3604.7,3604.5,5.70514238]
[1735952174769,0.8652,3604.6,3604.5,5.98266238]
[1735952175265,0.8652,3604.6,3604.5,1.62646142]
[1735952175465,1.2733,3604.6,3604.5,1.62646142]
[1735952176167,0.27754,3604.4,3604.3,0.27753]
[1735952176478,0.27754,3604.4,3604.3,1.35254]
[1735952178283,2.45586758,3604.4,3604.3,1.35254]
[1735952178576,2.45585758,3604.4,3604.3,1.35254]
[1735952179575,2.17832758,3604.4,3604.3,1.35254]
[1735952180875,2.45585758,3604.5,3604.4,0.27753]
[1735952181078,0.27753,3604.4,3604.3,1.35254]
[1735952182173,2.17832758,3604.5,3604.2,0.27754]
[1735952182380,0.27754,3604.3,3604.2,1.35354]
[1735952182580,0.27753,3604.4,3604.3,0.27754]
[1735952187985,0.27754,3604.4,3604.3,0.27754]
[1735952189484,0.27755,3604.2,3604.1,1.35355]
[1735952196185,0.27755,3604.2,3604.1,2.35478691]
[1735952200699,0.27754,3604.3,3604.2,0.27754]
[1735952203297,0.27754,3604.3,3604.2,0.27755]
[1735952205602,0.27755,3604.2,3604.1,2.35478691]
[1735952206302,0.27755,3604.2,3604.1,1.27878691]
[1735952206498,0.27755,3604.2,3604.1,2.35478691]
[1735952211091,0.27755,3604.2,3604.1,1.076]
[1735952213003,0.70845,3604.2,3604.1,1.35355]
[1735952213499,0.4309,3604.2,3603.9,1.00123691]
[1735952213704,1.15535,3604.1,3604.0,1.076]
[1735952213906,1.15535,3604.1,3604.0,1.35356]
[1735952216503,0.27757,3603.9,3603.8,0.27757]
[1735952216702,0.27757,3603.9,3603.8,1.35358]
[1735952217209,0.27758,3603.8,3603.7,1.35358]